fUST/lending_fUST_20250901
["ID","MTS","AMOUNT","RATE_DAILY","PERIOD"]
[382564769,1756669845357,-480.0,0.00016821,2]
[382564771,1756669845367,-480.0,0.00016821,2]
[382564773,1756669845375,-480.0,0.00016821,2]
[382564776,1756669845384,-480.0,0.00016821,2]
[382564779,1756669845393,-480.0,0.00016821,2]
[382564781,1756669845403,-480.0,0.00016821,2]
[382564783,1756669845412,-681.34,0.00016821,2]
[382564785,1756669845421,-480.0,0.00016821,2]
[382564787,1756669845430,-1148.59,0.00016821,2]
[382564789,1756669845438,-151.0,0.00016821,2]
[382564791,1756669845451,-480.0,0.00016821,2]
[382564793,1756669845460,-480.0,0.00016821,2]
[382564794,1756669845469,-480.0,0.00016821,2]
[382564796,1756669845478,-480.0,0.00016821,2]
[382564798,1756669845487,-480.0,0.00016821,2]
[382564800,1756669845498,-532.81,0.00016821,2]
[382564802,1756669845507,-480.0,0.00016821,2]
[382564804,1756669845519,-151.0,0.00016821,2]
[382564806,1756669845529,-480.0,0.00016821,2]
[382564808,1756669845539,-480.0,0.00016821,2]
[382564810,1756669845548,-506.96,0.00016821,2]
[382564812,1756669845557,-1028.7,0.00016821,2]
[382564814,1756669845566,-480.0,0.00016821,2]
[382564816,1756669845575,-480.0,0.00016821,2]
[382564818,1756669845584,-480.0,0.00016821,2]
[382564820,1756669845593,-615.31,0.00016821,2]
[382564822,1756669845602,-480.0,0.00016821,2]
[382564824,1756669845612,-480.0,0.00016821,2]
[382564826,1756669845623,-559.24,0.00016821,2]
[382564828,1756669845631,-731.62,0.00016821,2]
[382564830,1756669845640,-502.61,0.00016821,2]
[382564832,1756669845649,-717.39,0.00016821,2]
[382564834,1756669845659,-151.0,0.00016823,2]
[382564836,1756669845668,-151.0,0.00016823,2]
[382564838,1756669845677,-184.400329,0.00016823,2]
[382564840,1756669845686,-151.0,0.00016823,2]
[382564842,1756669845695,-151.0,0.00016823,2]
[382564844,1756669845704,-151.0,0.00016823,2]
[382564845,1756669845713,-151.0,0.00016823,2]
[382564847,1756669845722,-151.0,0.00016823,2]
[382564849,1756669845731,-151.0,0.00016824,2]
[382564851,1756669845740,-154.702727,0.00016824,2]
[382564853,1756669845749,-151.0,0.00016824,2]
[382564855,1756669845760,-151.0,0.00016824,2]
[382564857,1756669845770,-270.445229,0.00016824,2]
[382564859,1756669845780,-151.0,0.00016824,2]
[382564861,1756669845789,-152.0,0.00016825,2]
[382564863,1756669845798,-151.0,0.00016825,2]
[382564865,1756669845807,-151.0,0.00016825,2]
[382564867,1756669845816,-151.0,0.00016825,2]
[382564869,1756669845826,-151.0,0.00016825,2]
[382564871,1756669845836,-287.782845,0.00016825,2]
[382564873,1756669845845,-151.0,0.00016825,2]
[382564875,1756669845855,-480.0,0.00016825,2]
[382564877,1756669845864,-480.0,0.00016825,2]
[382564879,1756669845873,-480.0,0.00016825,2]
[382564881,1756669845883,-841.98,0.00016825,2]
[382564883,1756669845893,-1245.7,0.00016825,2]
[382564885,1756669845902,-608.59,0.00016825,2]
[382564887,1756669845911,-480.0,0.00016825,2]
[382564889,1756669845921,-790.92,0.00016825,2]
[382564891,1756669845930,-636.71,0.00016825,2]
[382564893,1756669845940,-709.51,0.00016825,2]
[382564895,1756669845949,-480.0,0.00016825,2]
[382564897,1756669845958,-480.0,0.00016825,2]
[382564899,1756669845967,-480.0,0.00016825,2]
[382564901,1756669845976,-480.0,0.00016825,2]
[382564902,1756669845986,-935.27,0.00016825,2]
[382564904,1756669845995,-622.4,0.00016825,2]
[382564906,1756669846005,-480.0,0.00016825,2]
[382564908,1756669846015,-965.92,0.00016825,2]
[382564910,1756669846024,-480.0,0.00016825,2]
[382564912,1756669846033,-151.0,0.00016825,2]
[382564914,1756669846042,-151.0,0.00016825,2]
[382564916,1756669846051,-151.0,0.00016825,2]
[382564918,1756669846061,-151.0,0.00016825,2]
[382564920,1756669846070,-480.0,0.00016825,2]
[382564922,1756669846079,-151.0,0.00016825,2]
[382564924,1756669846089,-151.0,0.00016825,2]
[382564926,1756669846098,-920.03,0.00016825,2]
[382564928,1756669846107,-151.0,0.00016825,2]
[382564930,1756669846117,-1580.33,0.00016825,2]
[382564932,1756669846126,-321.256486,0.00016825,2]
[382564934,1756669846135,-321.256486,0.00016825,2]
[382564936,1756669846144,-321.256486,0.00016825,2]
[382564938,1756669846155,-321.256486,0.00016825,2]
[382564940,1756669846164,-175.220775,0.00016825,2]
[382564942,1756669846173,-175.220775,0.00016825,2]
[382564944,1756669846182,-175.220775,0.00016825,2]
[382564946,1756669846191,-175.220775,0.00016825,2]
[382564948,1756669846200,-480.0,0.00016825,2]
[382564950,1756669846210,-480.0,0.00016825,2]
[382564951,1756669846219,-480.0,0.00016825,2]
[382564954,1756669846229,-653.65,0.00016825,2]
[382564955,1756669846239,-480.0,0.00016825,2]
[382564957,1756669846248,-480.0,0.00016825,2]
[382564959,1756669846256,-480.0,0.00016825,2]
[382564961,1756669846266,-480.0,0.00016825,2]
[382564963,1756669846275,-480.0,0.00016825,2]
[382564965,1756669846284,-480.0,0.00016825,2]
[382564967,1756669846294,-578.02,0.00016825,2]
[382564969,1756669846303,-480.0,0.00016825,2]
[382564971,1756669846313,-480.0,0.00016825,2]
[382564973,1756669846322,-1692.7,0.00016827,2]
[382564975,1756669846331,-1692.7,0.00016827,2]
[382564977,1756669846340,-614.31,0.00016828,2]
[382564979,1756669846349,-822.93,0.00016828,2]
[382564981,1756669846358,-1038.68,0.00016828,2]
[382564983,1756669846367,-267.69012047,0.00016828,2]
[382564985,1756669846376,-1025.64,0.00016828,2]
[382564987,1756669846385,-494.99,0.00016828,2]
[382564989,1756669846395,-480.0,0.00016828,2]
[382564991,1756669846404,-151.0,0.00016828,2]
[382564992,1756669846413,-151.0,0.00016828,2]
[382564994,1756669846422,-151.0,0.00016828,2]
[382564996,1756669846431,-151.0,0.00016828,2]
[382564998,1756669846440,-480.0,0.00016828,2]
[382565000,1756669846454,-151.0,0.00016828,2]
[382565002,1756669846463,-151.0,0.00016828,2]
[382565004,1756669846472,-151.0,0.00016828,2]
[382565006,1756669846481,-480.0,0.00016828,2]
[382565008,1756669846492,-151.0,0.00016828,2]
[382565010,1756669846501,-480.0,0.00016828,2]
[382565012,1756669846510,-544.15,0.00016828,2]
[382565014,1756669846519,-151.0,0.00016828,2]
[382565016,1756669846531,-151.123548,0.00016828,2]
[382565018,1756669846540,-151.0,0.00016828,2]
[382565020,1756669846549,-151.0,0.00016828,2]
[382565022,1756669846559,-151.0,0.00016828,2]
[382565024,1756669846568,-151.0,0.00016828,2]
[382565026,1756669846578,-167.076088,0.00016828,2]
[382565028,1756669846587,-2245.93,0.00016828,2]
[382565030,1756669846597,-480.0,0.00016828,2]
[382565032,1756669846606,-1148.6,0.00016828,2]
[382565034,1756669846616,-1692.7,0.00016828,2]
[382565036,1756669846625,-665.23,0.00016828,2]
[382565038,1756669846634,-1328.75,0.00016828,2]
[382565040,1756669846643,-651.51,0.00016828,2]
[382565042,1756669846653,-151.0,0.00016828,2]
[382565044,1756669846662,-155.599794,0.00016828,2]
[382565046,1756669846671,-151.0,0.00016828,2]
[382565048,1756669846680,-151.0,0.00016828,2]
[382565050,1756669846689,-151.0,0.00016828,2]
[382565052,1756669846699,-151.0,0.00016828,2]
[382565054,1756669846708,-151.0,0.00016828,2]
[382565056,1756669846717,-151.0,0.00016828,2]
[382565058,1756669846727,-151.0,0.00016828,2]
[382565060,1756669846736,-170.555053,0.00016828,2]
[382565062,1756669846746,-151.0,0.00016828,2]
[382565064,1756669846756,-151.0,0.00016828,2]
[382565066,1756669846765,-151.0,0.00016828,2]
[382565068,1756669846775,-151.0,0.00016828,2]
[382565070,1756669846784,-297.16245694,0.00016828,2]
[382565072,1756669846794,-480.0,0.00016829,2]
[382565074,1756669846803,-258.17961623,0.00016829,2]
[382565076,1756669846813,-480.0,0.00016829,2]
[382565078,1756669846823,-519.95,0.00016829,2]
[382565080,1756669846832,-1170.56,0.00016829,2]
[382565082,1756669846841,-480.0,0.00016829,2]
[382565083,1756669846851,-480.0,0.00016829,2]
[382565084,1756669846861,-1106.3,0.00016829,2]
[382565085,1756669846870,-1144.96,0.00016829,2]
[382565086,1756669846880,-480.0,0.00016829,2]
[382565087,1756669846889,-480.0,0.00016829,2]
[382565088,1756669846899,-434.75143549,0.00016829,2]
[382565089,1756669846909,-480.0,0.00016829,2]
[382565090,1756669846919,-480.0,0.00016829,2]
[382565091,1756669846928,-480.0,0.00016829,2]
[382565092,1756669846938,-480.0,0.00016829,2]
[382565093,1756669846947,-599.6,0.00016829,2]
[382565094,1756669846958,-480.0,0.00016829,2]
[382565096,1756669846967,-480.0,0.00016829,2]
[382565098,1756669846978,-480.0,0.00016829,2]
[382565100,1756669846987,-480.0,0.00016829,2]
[382565102,1756669846997,-480.0,0.00016829,2]
[382565104,1756669847006,-480.0,0.00016829,2]
[382565106,1756669847016,-634.76,0.00016829,2]
[382565108,1756669847025,-480.0,0.00016829,2]
[382565110,1756669847035,-480.0,0.00016829,2]
[382565112,1756669847044,-497.68,0.00016829,2]
[382565114,1756669847054,-480.0,0.00016829,2]
[382565116,1756669847064,-480.0,0.00016829,2]
[382565118,1756669847074,-480.0,0.00016829,2]
[382565120,1756669847083,-480.0,0.00016829,2]
[382565122,1756669847093,-480.0,0.00016829,2]
[382565124,1756669847102,-271.31029319,0.00016829,2]
[382565126,1756669847112,-480.0,0.00016829,2]
[382565128,1756669847121,-480.0,0.00016829,2]
[382565130,1756669847130,-622.52,0.00016829,2]
[382565132,1756669847139,-480.0,0.00016829,2]
[382565134,1756669847149,-480.0,0.00016829,2]
[382565136,1756669847158,-151.0,0.00016829,2]
[382565138,1756669847167,-480.0,0.00016829,2]
[382565140,1756669847177,-232.24603415,0.00016829,2]
[382565142,1756669847186,-480.0,0.00016829,2]
[382565144,1756669847196,-480.0,0.00016829,2]
[382565146,1756669847207,-480.0,0.00016829,2]
[382565148,1756669847216,-157.438506,0.00016829,2]
[382565150,1756669847226,-500.26,0.00016829,2]
[382565152,1756669847235,-480.0,0.00016829,2]
[382565154,1756669847245,-480.0,0.00016829,2]
[382565156,1756669847254,-480.0,0.00016829,2]
[382565158,1756669847263,-480.0,0.00016829,2]
[382565160,1756669847273,-480.0,0.00016829,2]
[382565162,1756669847283,-480.0,0.00016829,2]
[382565164,1756669847292,-802.31,0.00016829,2]
[382565167,1756669847302,-151.0,0.00016829,2]
[382565169,1756669847312,-722.2,0.00016829,2]
[382565171,1756669847321,-289.739314,0.00016829,2]
[382565173,1756669847331,-480.0,0.00016829,2]
[382565175,1756669847340,-151.0,0.00016829,2]
[382565177,1756669847350,-151.0,0.00016829,2]
[382565179,1756669847359,-151.0,0.00016829,2]
[382565181,1756669847368,-480.0,0.00016829,2]
[382565183,1756669847377,-151.0,0.00016829,2]
[382565184,1756669847387,-151.0,0.00016829,2]
[382565187,1756669847398,-480.0,0.00016829,2]
[382565188,1756669847408,-480.0,0.00016829,2]
[382565191,1756669847417,-480.0,0.00016829,2]
[382565193,1756669847426,-480.0,0.00016829,2]
[382565195,1756669847437,-500.0,0.00016829,2]
[382565197,1756669847451,-480.0,0.00016829,2]
[382565199,1756669847460,-480.0,0.00016829,2]
[382565201,1756669847471,-557.43,0.00016829,2]
[382565203,1756669847480,-480.0,0.00016829,2]
[382565205,1756669847491,-480.0,0.00016829,2]
[382565207,1756669847500,-707.5,0.00016829,2]
[382565209,1756669847509,-151.0,0.00016829,2]
[382565211,1756669847520,-151.0,0.00016829,2]
[382565213,1756669847530,-480.0,0.00016829,2]
[382565215,1756669847541,-480.0,0.00016829,2]
[382565217,1756669847552,-492.88,0.00016829,2]
[382565219,1756669847561,-957.25,0.00016829,2]
[382565221,1756669847571,-480.0,0.00016829,2]
[382565223,1756669847580,-480.0,0.00016829,2]
[382565225,1756669847590,-480.0,0.00016829,2]
[382565227,1756669847599,-480.0,0.00016829,2]
[382565229,1756669847609,-480.0,0.00016829,2]
[382565231,1756669847619,-480.0,0.00016829,2]
[382565233,1756669847628,-513.62,0.00016829,2]
[382565235,1756669847637,-480.0,0.00016829,2]
[382565237,1756669847647,-485.46,0.00016829,2]
[382565239,1756669847656,-625.41,0.00016829,2]
[382565241,1756669847666,-151.0,0.00016829,2]
[382565243,1756669847675,-1293.0,0.00016829,2]
[382565245,1756669847684,-757.4,0.00016829,2]
[382565248,1756669847695,-480.0,0.00016829,2]
[382565250,1756669847704,-1692.7,0.0001683,2]
[382565252,1756669847714,-1692.7,0.0001683,2]
[382565254,1756669847723,-363.4286864,0.00016834,2]
[382565256,1756669847733,-1692.7,0.00016834,2]
[382565258,1756669847743,-1692.7,0.00016834,2]
[382565259,1756669847752,-1692.7,0.00016834,2]
[382565262,1756669847762,-1692.7,0.00016834,2]
[382565264,1756669847772,-1692.7,0.00016834,2]
[382565266,1756669847782,-1692.77046566,0.00016834,2]
[382565268,1756669847793,-480.0,0.00016835,2]
[382565269,1756669847803,-480.0,0.00016835,2]
[382565272,1756669847814,-480.0,0.00016835,2]
[382565274,1756669847823,-580.24,0.00016835,2]
[382565276,1756669847833,-480.0,0.00016835,2]
[382565278,1756669847842,-151.0,0.00016835,2]
[382565280,1756669847852,-480.0,0.00016835,2]
[382565282,1756669847862,-480.0,0.00016835,2]
[382565284,1756669847872,-649.57,0.00016835,2]
[382565286,1756669847881,-152.778142,0.00016835,2]
[382565288,1756669847891,-543.46,0.00016835,2]
[382565290,1756669847901,-480.0,0.00016835,2]
[382565292,1756669847912,-510.78,0.00016835,2]
[382565294,1756669847922,-151.0,0.00016835,2]
[382565296,1756669847932,-151.0,0.00016835,2]
[382565298,1756669847941,-500.0,0.00016835,2]
[382565300,1756669847952,-184.0,0.00016843,2]
[382565302,1756669847961,-800.0,0.00016863,2]
[382565304,1756669847971,-24210.52718341,0.00016864,2]
[382565306,1756669847980,-151.0,0.00016864,2]
[382565308,1756669847990,-151.0,0.00016864,2]
[382565310,1756669848000,-176.48709,0.00016864,2]
[382565312,1756669848009,-151.0,0.00016864,2]
[382565314,1756669848019,-151.0,0.00016864,2]
[382565316,1756669848029,-151.0,0.00016864,2]
[382565318,1756669848039,-321.256486,0.00016864,2]
[382565320,1756669848048,-321.256486,0.00016864,2]
[382565322,1756669848058,-321.256486,0.00016864,2]
[382565324,1756669848067,-321.256486,0.00016864,2]
[382565326,1756669848077,-175.220775,0.00016864,2]
[382565328,1756669848088,-175.220775,0.00016864,2]
[382565330,1756669848097,-175.220775,0.00016864,2]
[382565332,1756669848106,-175.220775,0.00016864,2]
[382565334,1756669848117,-500.0,0.00016873,2]
[382565336,1756669848127,-500.0,0.00016873,2]
[382565338,1756669848139,-213.6364315,0.00016873,2]
[382565340,1756669848149,-500.0,0.00016873,2]
[382565342,1756669848158,-500.0,0.00016873,2]
[382565344,1756669848168,-500.0,0.00016873,2]
[382565346,1756669848178,-500.0,0.00016873,2]
[382565348,1756669848188,-500.0,0.00016873,2]
[382565350,1756669848198,-500.0,0.00016873,2]
[382565352,1756669848208,-500.0,0.00016873,2]
[382565354,1756669848218,-500.0,0.00016873,2]
[382565356,1756669848227,-500.0,0.00016873,2]
[382565358,1756669848237,-373.13586244,0.00016873,2]
[382565360,1756669848248,-500.0,0.00016873,2]
[382565362,1756669848258,-500.0,0.00016873,2]
[382565365,1756669848267,-500.0,0.00016873,2]
[382565367,1756669848276,-162.28722497,0.00016873,2]
[382565369,1756669848285,-500.0,0.00016873,2]
[382565371,1756669848295,-501.21878673,0.00016873,2]
[382565373,1756669848304,-500.0,0.00016873,2]
[382565375,1756669848313,-500.0,0.00016873,2]
[382565376,1756669848322,-500.0,0.00016873,2]
[382565378,1756669848332,-500.0,0.00016873,2]
[382565380,1756669848342,-500.0,0.00016873,2]
[382565382,1756669848352,-608.87160144,0.00016873,2]
[382565384,1756669848362,-500.0,0.00016873,2]
[382565387,1756669848371,-500.0,0.00016873,2]
[382565388,1756669848381,-500.0,0.00016873,2]
[382565391,1756669848392,-500.0,0.00016873,2]
[382565393,1756669848402,-500.0,0.00016873,2]
[382565395,1756669848411,-500.0,0.00016873,2]
[382565397,1756669848421,-500.0,0.00016873,2]
[382565399,1756669848430,-340.29691415,0.00016873,2]
[382565401,1756669848439,-500.0,0.00016873,2]
[382565402,1756669848453,-500.0,0.00016873,2]
[382565404,1756669848463,-500.0,0.00016873,2]
[382565405,1756669848472,-500.0,0.00016873,2]
[382565406,1756669848482,-213.79428328,0.00016873,2]
[382565407,1756669848494,-500.0,0.00016873,2]
[382565408,1756669848504,-500.0,0.00016873,2]
[382565409,1756669848514,-500.0,0.00016873,2]
[382565410,1756669848525,-257.57865775,0.00016873,2]
[382565411,1756669848536,-500.0,0.00016873,2]
[382565412,1756669848545,-500.0,0.00016873,2]
[382565413,1756669848555,-500.0,0.00016873,2]
[382565414,1756669848564,-194.94272003,0.00016873,2]
[382565415,1756669849160,-305.05727997,0.00016873,2]
[382565416,1756669849170,-500.0,0.00016873,2]
[382565417,1756669849179,-500.0,0.00016873,2]
[382565418,1756669849189,-500.0,0.00016873,2]
[382565419,1756669849199,-500.0,0.00016873,2]
[382565420,1756669849208,-157.444891,0.00016873,2]
[382565421,1756669849217,-151.0,0.00016873,2]
[382565422,1756669849227,-151.0,0.00016873,2]
[382565423,1756669849236,-151.0,0.00016873,2]
[382565424,1756669849246,-151.0,0.00016873,2]
[382565425,1756669849255,-208.466486,0.00016873,2]
[382565426,1756669849265,-300.0,0.00016885,2]
[382565427,1756669849275,-300.0,0.00016885,2]
[382565428,1756669849285,-300.0,0.00016885,2]
[382565429,1756669849295,-300.0,0.00016885,2]
[382565430,1756669849304,-300.0,0.00016885,2]
[382565431,1756669849314,-300.0,0.00016885,2]
[382565432,1756669849323,-300.0,0.00016885,2]
[382565433,1756669849332,-300.0,0.00016885,2]
[382565434,1756669849342,-300.0,0.00016885,2]
[382565435,1756669849352,-300.0,0.00016885,2]
[382565436,1756669849362,-300.0,0.00016885,2]
[382565437,1756669849371,-300.0,0.00016885,2]
[382565438,1756669849381,-251.58473263,0.00016885,2]
[382565479,1756669850198,-480.0,0.00016544,2]
[382565481,1756669850207,-709.88820712,0.00016545,2]
[382565484,1756669850230,-3281.72824,0.00016545,2]
[382565709,1756669852803,612.973075,0.00015549,2]
[382567345,1756669871029,238.7669548,0.000235,30]
[382567346,1756669877372,953.23646316,0.00016434,2]
[382567347,1756669935488,327.15984189,0.00016446,2]
[382567348,1756669948995,154.542554,0.00025,30]
[382567350,1756669977920,252.24149174,0.00016445,2]
[382567351,1756669989561,153.432348,0.00025,30]
[382567352,1756669989824,153.432348,0.00024975,30]
[382567353,1756669990690,153.432348,0.0002495,30]
[382567354,1756669991019,153.432348,0.00024925,30]
[382567358,1756670015239,5891.84740725,0.00015546,2]
[382567359,1756670015262,10000.01,0.00015546,2]
[382567360,1756670015284,10000.01,0.00015546,2]
[382567361,1756670015305,10000.01,0.00015546,2]
[382567362,1756670015326,4108.16259275,0.00015546,2]
[382567363,1756670040608,5000.0,0.000165,2]
[382567367,1756670062926,-1200.0,0.00016543,2]
[382567368,1756670062959,-300.0,0.00016543,2]
[382567369,1756670078733,-480.0,0.00016544,2]
[382567370,1756670078768,-480.0,0.00016544,2]
[382567371,1756670078801,-1205.69,0.00016544,2]
[382567372,1756670078833,-603.92,0.00016544,2]
[382567373,1756670078865,-480.0,0.00016544,2]
[382567374,1756670078899,-480.0,0.00016544,2]
[382567375,1756670078932,-480.0,0.00016544,2]
[382567376,1756670078965,-480.0,0.00016544,2]
[382567377,1756670078996,-480.0,0.00016544,2]
[382567378,1756670079029,-480.0,0.00016544,2]
[382567379,1756670079060,-480.0,0.00016544,2]
[382567380,1756670079091,-480.0,0.00016544,2]
[382567381,1756670079123,-490.5,0.00016544,2]
[382567382,1756670079154,-1326.6,0.00016544,2]
[382567383,1756670079185,-480.0,0.00016544,2]
[382567384,1756670079217,-761.42,0.00016544,2]
[382567385,1756670079252,-480.0,0.00016544,2]
[382567386,1756670079285,-1936.76,0.00016544,2]
[382567387,1756670079317,-480.0,0.00016544,2]
[382567388,1756670079350,-480.0,0.00016544,2]
[382567389,1756670079382,-480.0,0.00016544,2]
[382567390,1756670079414,-487.85,0.00016544,2]
[382567391,1756670079447,-480.0,0.00016544,2]
[382567392,1756670079479,-713.35,0.00016544,2]
[382567393,1756670079513,-480.0,0.00016544,2]
[382567394,1756670079546,-480.0,0.00016544,2]
[382567395,1756670079580,-932.28,0.00016544,2]
[382567396,1756670079617,-993.2,0.00016544,2]
[382567397,1756670079648,-535.44103704,0.00016544,2]
[382567398,1756670079682,-1128.52,0.00016544,2]
[382567399,1756670079713,-480.0,0.00016544,2]
[382567400,1756670079745,-480.0,0.00016544,2]
[382567401,1756670079951,-480.0,0.00016544,2]
[382567402,1756670079985,-480.0,0.00016544,2]
[382567403,1756670080019,-480.0,0.00016544,2]
[382567404,1756670080056,-480.0,0.00016544,2]
[382567405,1756670080090,-480.0,0.00016544,2]
[382567406,1756670080123,-673.49,0.00016544,2]
[382567407,1756670080158,-389.78158814,0.00016544,2]
[382567408,1756670080192,-480.0,0.00016544,2]
[382567409,1756670080224,-532.12,0.00016544,2]
[382567410,1756670080256,-480.0,0.00016544,2]
[382567411,1756670080288,-480.0,0.00016544,2]
[382567412,1756670080320,-1748.03,0.00016544,2]
[382567413,1756670080352,-659.34,0.00016544,2]
[382567414,1756670080391,-480.0,0.00016544,2]
[382567415,1756670080456,-480.0,0.00016544,2]
[382567416,1756670080520,-480.0,0.00016544,2]
[382567417,1756670080592,-522.35,0.00016544,2]
[382567418,1756670080663,-1524.2,0.00016544,2]
[382567419,1756670080722,-480.0,0.00016544,2]
[382567420,1756670080755,-480.0,0.00016544,2]
[382567421,1756670080787,-480.0,0.00016544,2]
[382567422,1756670080820,-480.0,0.00016544,2]
[382567423,1756670080852,-526.45,0.00016544,2]
[382567424,1756670080885,-655.43,0.00016544,2]
[382567425,1756670080917,-904.56,0.00016544,2]
[382567426,1756670081596,-181.65011977,0.00016544,2]
[382567427,1756670082396,480.0,0.00016544,2]
[382567428,1756670091756,480.0,0.00016544,2]
[382567429,1756670096727,655.77,0.00016544,2]
[382567432,1756670101057,-3467.26500661,0.00016544,2]
[382567433,1756670101516,1155.46,0.00016544,2]
[382567434,1756670102292,300.0,0.00016543,2]
[382567435,1756670102611,300.0,0.00016543,2]
[382567436,1756670102828,300.0,0.00016543,2]
[382567437,1756670103867,300.0,0.00016543,2]
[382567438,1756670104165,1200.0,0.00016543,2]
[382567439,1756670105183,796.54,0.00016544,2]
[382567440,1756670106022,867.82,0.00016544,2]
[382567441,1756670109883,-10000.01,0.00016544,2]
[382567442,1756670110038,-10000.01,0.00016544,2]
[382567443,1756670110167,480.0,0.00016544,2]
[382567444,1756670110181,-10000.01,0.00016544,2]
[382567445,1756670110340,-10000.01,0.00016544,2]
[382567446,1756670110448,-3467.31500661,0.00016544,2]
[382567447,1756670110472,-3065.37998678,0.00016544,2]
[382567449,1756670118938,480.0,0.00016544,2]
[382567450,1756670119826,480.0,0.00016544,2]
[382567451,1756670123964,480.0,0.00016544,2]
[382567452,1756670127236,480.0,0.00016544,2]
[382567453,1756670129996,5000.0,0.00016544,2]
[382567454,1756670130493,480.0,0.00016544,2]
[382567455,1756670132216,478.17347262,0.00016544,2]
[382567456,1756670132403,517.64,0.00016544,2]
[382567457,1756670133159,480.0,0.00016544,2]
[382567458,1756670134983,886.64,0.00016544,2]
[382567459,1756670137016,237.55652738,0.00016544,2]
[382567460,1756670137041,817.60347262,0.00016544,2]
[382567461,1756670139512,480.0,0.00016544,2]
[382567462,1756670145616,480.0,0.00016544,2]
[382567463,1756670148640,480.0,0.00016544,2]
[382567465,1756670153079,5000.0,0.00016544,2]
[382567466,1756670154748,480.0,0.00016544,2]
[382567467,1756670161023,480.0,0.00016544,2]
[382567468,1756670161417,1782.40652738,0.00016544,2]
[382567469,1756670161442,3217.59347262,0.00016544,2]
[382567470,1756670164039,300.0,0.00016544,2]
[382567472,1756670165189,480.0,0.00016544,2]
[382567473,1756670168424,629.74,0.00016544,2]
[382567474,1756670173739,480.0,0.00016544,2]
[382567475,1756670174033,899.09,0.00016544,2]
[382567476,1756670177196,3993.58652738,0.00016544,2]
[382567477,1756670177220,1006.41347262,0.00016544,2]
[382567478,1756670181148,-493.17,0.00016545,2]
[382567479,1756670181182,-480.0,0.00016545,2]
[382567480,1756670181216,-480.0,0.00016545,2]
[382567481,1756670181248,-817.45,0.00016545,2]
[382567482,1756670181280,-568.14,0.00016545,2]
[382567483,1756670181313,-480.0,0.00016545,2]
[382567484,1756670181345,-480.0,0.00016545,2]
[382567485,1756670181378,-756.56,0.00016545,2]
[382567486,1756670181411,-690.77,0.00016545,2]
[382567487,1756670181444,-1218.71,0.00016545,2]
[382567488,1756670181477,-4476.36,0.00016545,2]
[382567489,1756670181511,-811.83,0.00016545,2]
[382567490,1756670181546,-480.0,0.00016545,2]
[382567491,1756670181583,-480.0,0.00016545,2]
[382567492,1756670181616,-480.0,0.00016545,2]
[382567493,1756670181649,-480.0,0.00016545,2]